[Event "Titled Tuesday Blitz September 28 2021"]
[White "Jeet, Jain"]
[Black "Martin Carmona, Gaston Manuel"]
[WhiteFideId "5073022"]
[BlackFideId "22284567"]
[WhiteElo "2085"]
[BlackElo "2161"]
[Result "0-1"]
[Round "06"]
[TimeControl "180+1"]
[Date "2021.09.28"]
[WhiteClock "0:00:43"]
[BlackClock "0:00:57"]

1. e4 {[%clk 0:03:00]}  e6 {[%clk 0:02:58]} 2. d3 {[%clk 0:02:58]}  d5 {[%clk 0:02:58]} 3. Qe2 {[%clk 0:02:58]}  dxe4 {[%clk 0:02:58]} 4. dxe4 {[%clk 0:02:58]}  e5 {[%clk 0:02:58]} 5. Nf3 {[%clk 0:02:57]}  Nc6 {[%clk 0:02:58]} 6. g3 {[%clk 0:02:56]}  Nf6 {[%clk 0:02:59]} 7. Bg2 {[%clk 0:02:55]}  Bg4 {[%clk 0:02:54]} 8. c3 {[%clk 0:02:54]}  Bc5 {[%clk 0:02:53]} 9. h3 {[%clk 0:02:54]}  Bh5 {[%clk 0:02:53]} 10. O-O {[%clk 0:02:54]}  a5 {[%clk 0:02:52]} 11. Be3 {[%clk 0:02:54]}  Qe7 {[%clk 0:02:52]} 12. Nbd2 {[%clk 0:02:53]}  O-O {[%clk 0:02:51]} 13. a4 {[%clk 0:02:51]}  Bxf3 {[%clk 0:02:47]} 14. Qxf3 {[%clk 0:02:47]}  Bxe3 {[%clk 0:02:43]} 15. Qxe3 {[%clk 0:02:48]}  Rad8 {[%clk 0:02:40]} 16. Rad1 {[%clk 0:02:41]}  b6 {[%clk 0:02:37]} 17. f4 {[%clk 0:02:40]}  Nd7 {[%clk 0:02:20]} 18. Kh2 {[%clk 0:02:35]}  Nc5 {[%clk 0:02:16]} 19. f5 {[%clk 0:02:33]}  f6 {[%clk 0:02:14]} 20. Qe2 {[%clk 0:02:27]}  Rd7 {[%clk 0:01:59]} 21. Qb5 {[%clk 0:02:21]}  Na7 {[%clk 0:01:58]} 22. Qc4+ {[%clk 0:02:21]}  Qf7 {[%clk 0:01:57]} 23. Qxf7+ {[%clk 0:02:17]}  Kxf7 {[%clk 0:01:58]} 24. Nc4 {[%clk 0:02:10]}  Rfd8 {[%clk 0:01:56]} 25. Rxd7+ {[%clk 0:02:09]}  Rxd7 {[%clk 0:01:57]} 26. Ra1 {[%clk 0:02:05]}  Nc8 {[%clk 0:01:49]} 27. Kg1 {[%clk 0:02:00]}  Nd6 {[%clk 0:01:49]} 28. Nxd6+ {[%clk 0:01:59]}  Rxd6 {[%clk 0:01:50]} 29. b4 {[%clk 0:01:59]}  Nb3 {[%clk 0:01:38]} 30. Rb1 {[%clk 0:01:55]}  Nd2 {[%clk 0:01:38]} 31. Ra1 {[%clk 0:01:42]}  Rd3 {[%clk 0:01:33]} 32. Rd1 {[%clk 0:01:31]}  Rd6 {[%clk 0:01:33]} 33. Ra1 {[%clk 0:01:27]}  c5 {[%clk 0:01:27]} 34. bxa5 {[%clk 0:01:27]}  bxa5 {[%clk 0:01:27]} 35. Kf2 {[%clk 0:01:23]}  Rd3 {[%clk 0:01:20]} 36. Ke2 {[%clk 0:01:22]}  Rxg3 {[%clk 0:01:20]} 37. Kxd2 {[%clk 0:01:17]}  Rxg2+ {[%clk 0:01:20]} 38. Kd3 {[%clk 0:01:18]}  Rg3+ {[%clk 0:01:20]} 39. Kc4 {[%clk 0:01:17]}  Rxh3 {[%clk 0:01:21]} 40. Rb1 {[%clk 0:01:13]}  h5 {[%clk 0:01:19]} 41. Rb7+ {[%clk 0:01:13]}  Kg8 {[%clk 0:01:19]} 42. Ra7 {[%clk 0:01:11]}  h4 {[%clk 0:01:15]} 43. Rxa5 {[%clk 0:01:11]}  Re3 {[%clk 0:01:15]} 44. Ra8+ {[%clk 0:00:58]}  Kh7 {[%clk 0:01:15]} 45. a5 {[%clk 0:00:58]}  h3 {[%clk 0:01:10]} 46. Rb8 {[%clk 0:00:58]}  Rxe4+ {[%clk 0:01:05]} 47. Kxc5 {[%clk 0:00:58]}  Ra4 {[%clk 0:01:01]} 48. Rb4 {[%clk 0:00:43]}  Rxb4 {[%clk 0:00:57]} 0-1


[Site "https://www.chess.com"]

[Event "Titled Tuesday Blitz September 28 2021"]
[White "Khusnutdinov, Rustam"]
[Black "Molina, Roberto Junio Brito"]
[WhiteFideId "13701703"]
[BlackFideId "2109450"]
[WhiteElo "2571"]
[BlackElo "2402"]
[Result "1/2-1/2"]
[Round "06"]
[TimeControl "180+1"]
[Date "2021.09.28"]
[WhiteClock "0:00:10"]
[BlackClock "0:00:15"]

1. e4 {[%clk 0:03:00]}  c6 {[%clk 0:03:00]} 2. Nf3 {[%clk 0:03:00]}  d5 {[%clk 0:03:01]} 3. d3 {[%clk 0:03:01]}  g6 {[%clk 0:03:01]} 4. Qe2 {[%clk 0:03:01]}  Bg7 {[%clk 0:03:01]} 5. g3 {[%clk 0:03:01]}  Bg4 {[%clk 0:03:00]} 6. Bg2 {[%clk 0:03:01]}  e6 {[%clk 0:03:00]} 7. O-O {[%clk 0:03:01]}  Ne7 {[%clk 0:03:00]} 8. Nbd2 {[%clk 0:03:02]}  O-O {[%clk 0:03:00]} 9. h3 {[%clk 0:03:02]}  Bxf3 {[%clk 0:02:59]} 10. Nxf3 {[%clk 0:03:03]}  Nd7 {[%clk 0:02:59]} 11. c3 {[%clk 0:03:03]}  a5 {[%clk 0:02:56]} 12. d4 {[%clk 0:03:00]}  dxe4 {[%clk 0:02:54]} 13. Qxe4 {[%clk 0:02:55]}  Nd5 {[%clk 0:02:53]} 14. a4 {[%clk 0:02:53]}  b5 {[%clk 0:02:52]} 15. Qe2 {[%clk 0:02:36]}  Qb6 {[%clk 0:02:49]} 16. h4 {[%clk 0:02:35]}  h5 {[%clk 0:02:46]} 17. Ng5 {[%clk 0:02:35]}  Rfe8 {[%clk 0:02:44]} 18. Ne4 {[%clk 0:02:28]}  N7f6 {[%clk 0:02:40]} 19. Nc5 {[%clk 0:02:26]}  Ra7 {[%clk 0:02:34]} 20. Nd3 {[%clk 0:02:20]}  b4 {[%clk 0:02:27]} 21. c4 {[%clk 0:02:11]}  Ne7 {[%clk 0:02:27]} 22. Be3 {[%clk 0:02:12]}  Nf5 {[%clk 0:02:27]} 23. Ne5 {[%clk 0:01:53]}  Rc7 {[%clk 0:02:26]} 24. c5 {[%clk 0:01:51]}  Qb7 {[%clk 0:02:26]} 25. Nc4 {[%clk 0:01:46]}  Qa6 {[%clk 0:02:21]} 26. Rfe1 {[%clk 0:01:42]}  Nd5 {[%clk 0:02:18]} 27. Rad1 {[%clk 0:01:40]}  Rd8 {[%clk 0:02:17]} 28. Kh2 {[%clk 0:01:36]}  Rcd7 {[%clk 0:01:59]} 29. Be4 {[%clk 0:01:21]}  Nde7 {[%clk 0:01:40]} 30. Nb6 {[%clk 0:01:16]}  Qxe2 {[%clk 0:01:39]} 31. Rxe2 {[%clk 0:01:16]}  Ra7 {[%clk 0:01:25]} 32. Red2 {[%clk 0:01:13]}  Bh6 {[%clk 0:01:18]} 33. Bg5 {[%clk 0:00:58]}  f6 {[%clk 0:01:04]} 34. Bxf5 {[%clk 0:00:51]}  Nxf5 {[%clk 0:01:00]} 35. Bxf6 {[%clk 0:00:51]}  Bxd2 {[%clk 0:00:41]} 36. Bxd8 {[%clk 0:00:51]}  Bh6 {[%clk 0:00:35]} 37. Bf6 {[%clk 0:00:48]}  Kf7 {[%clk 0:00:28]} 38. Be5 {[%clk 0:00:48]}  Bf8 {[%clk 0:00:26]} 39. b3 {[%clk 0:00:42]}  Be7 {[%clk 0:00:26]} 40. Kg2 {[%clk 0:00:40]}  Bd8 {[%clk 0:00:26]} 41. Nc4 {[%clk 0:00:39]}  Rd7 {[%clk 0:00:23]} 42. Kf3 {[%clk 0:00:39]}  Rd5 {[%clk 0:00:21]} 43. Ke4 {[%clk 0:00:39]}  Ke7 {[%clk 0:00:18]} 44. Ne3 {[%clk 0:00:31]}  Rd7 {[%clk 0:00:17]} 45. f3 {[%clk 0:00:28]}  Nxe3 {[%clk 0:00:16]} 46. Kxe3 {[%clk 0:00:28]}  Ke8 {[%clk 0:00:15]} 47. Ke4 {[%clk 0:00:27]}  Rf7 {[%clk 0:00:15]} 48. Rh1 {[%clk 0:00:27]}  Kd7 {[%clk 0:00:14]} 49. Bf4 {[%clk 0:00:23]}  Bf6 {[%clk 0:00:13]} 50. Be5 {[%clk 0:00:21]}  Be7 {[%clk 0:00:13]} 51. g4 {[%clk 0:00:20]}  Rh7 {[%clk 0:00:12]} 52. g5 {[%clk 0:00:18]}  Rf7 {[%clk 0:00:12]} 53. f4 {[%clk 0:00:19]}  Rf5 {[%clk 0:00:12]} 54. Rg1 {[%clk 0:00:18]}  Bd8 {[%clk 0:00:13]} 55. Ke3 {[%clk 0:00:18]}  Bc7 {[%clk 0:00:11]} 56. Bxc7 {[%clk 0:00:17]}  Kxc7 {[%clk 0:00:12]} 57. Kf3 {[%clk 0:00:18]}  Kd7 {[%clk 0:00:12]} 58. Re1 {[%clk 0:00:18]}  Rd5 {[%clk 0:00:13]} 59. Ke4 {[%clk 0:00:18]}  Ke7 {[%clk 0:00:13]} 60. Kd3 {[%clk 0:00:18]}  Kd7 {[%clk 0:00:14]} 61. Kc4 {[%clk 0:00:19]}  Ke7 {[%clk 0:00:14]} 62. Re4 {[%clk 0:00:17]}  Rd7 {[%clk 0:00:15]} 63. Re5 {[%clk 0:00:17]}  Kf7 {[%clk 0:00:15]} 64. Kd3 {[%clk 0:00:17]}  Rd8 {[%clk 0:00:14]} 65. Ke4 {[%clk 0:00:17]}  Rd7 {[%clk 0:00:15]} 66. Kd3 {[%clk 0:00:15]}  Rd8 {[%clk 0:00:15]} 67. Kc4 {[%clk 0:00:11]}  Rd7 {[%clk 0:00:15]} 68. Kd3 {[%clk 0:00:10]} 1/2-1/2


[Site "https://www.chess.com"]

[Event "Titled Tuesday Blitz September 28 2021"]
[White "Korchmar, Vasiliy"]
[Black "Kovanova, Baira"]
[WhiteFideId "24131750"]
[BlackFideId "4164083"]
[WhiteElo "2370"]
[BlackElo "2187"]
[Result "0-1"]
[Round "06"]
[TimeControl "180+1"]
[Date "2021.09.28"]
[WhiteClock "0:00:08"]
[BlackClock "0:00:15"]

1. e4 {[%clk 0:03:00]}  e5 {[%clk 0:02:59]} 2. Nf3 {[%clk 0:03:00]}  Nc6 {[%clk 0:02:59]} 3. Nc3 {[%clk 0:03:01]}  Nf6 {[%clk 0:02:58]} 4. Bb5 {[%clk 0:03:01]}  Bd6 {[%clk 0:02:58]} 5. d3 {[%clk 0:03:00]}  O-O {[%clk 0:02:58]} 6. O-O {[%clk 0:02:59]}  a6 {[%clk 0:02:56]} 7. Bc4 {[%clk 0:02:57]}  Bc5 {[%clk 0:02:54]} 8. a3 {[%clk 0:02:55]}  h6 {[%clk 0:02:49]} 9. Be3 {[%clk 0:02:48]}  Ba7 {[%clk 0:02:45]} 10. Bxa7 {[%clk 0:02:46]}  Rxa7 {[%clk 0:02:45]} 11. d4 {[%clk 0:02:46]}  d6 {[%clk 0:02:35]} 12. h3 {[%clk 0:02:46]}  Ra8 {[%clk 0:02:32]} 13. Re1 {[%clk 0:02:44]}  exd4 {[%clk 0:02:28]} 14. Nxd4 {[%clk 0:02:43]}  Ne5 {[%clk 0:02:27]} 15. Ba2 {[%clk 0:02:39]}  Re8 {[%clk 0:02:22]} 16. f4 {[%clk 0:02:37]}  Ng6 {[%clk 0:02:22]} 17. Qf3 {[%clk 0:02:36]}  c5 {[%clk 0:02:15]} 18. Nf5 {[%clk 0:02:19]}  Qb6 {[%clk 0:01:40]} 19. Rad1 {[%clk 0:02:03]}  Bxf5 {[%clk 0:01:32]} 20. exf5 {[%clk 0:02:03]}  Nh4 {[%clk 0:01:32]} 21. Rxe8+ {[%clk 0:01:29]}  Rxe8 {[%clk 0:01:31]} 22. Qd3 {[%clk 0:01:30]}  c4+ {[%clk 0:00:40]} 23. Qd4 {[%clk 0:01:29]}  Qxb2 {[%clk 0:00:33]} 24. Bxc4 {[%clk 0:01:17]}  Nxf5 {[%clk 0:00:29]} 25. Qd3 {[%clk 0:01:04]}  Qb6+ {[%clk 0:00:27]} 26. Kh2 {[%clk 0:01:01]}  Ne3 {[%clk 0:00:26]} 27. Rb1 {[%clk 0:00:56]}  Qc5 {[%clk 0:00:25]} 28. Ba2 {[%clk 0:00:46]}  Neg4+ {[%clk 0:00:25]} 29. hxg4 {[%clk 0:00:35]}  Nxg4+ {[%clk 0:00:25]} 30. Kg3 {[%clk 0:00:34]}  Re3+ {[%clk 0:00:25]} 31. Kxg4 {[%clk 0:00:35]}  Rxd3 {[%clk 0:00:24]} 32. cxd3 {[%clk 0:00:28]}  Qxc3 {[%clk 0:00:19]} 33. Rxb7 {[%clk 0:00:28]}  h5+ {[%clk 0:00:16]} 34. Kxh5 {[%clk 0:00:21]}  Qc5+ {[%clk 0:00:15]} 35. Kg4 {[%clk 0:00:17]}  d5 {[%clk 0:00:15]} 36. a4 {[%clk 0:00:08]}  Qc8+ {[%clk 0:00:15]} 0-1


[Site "https://www.chess.com"]

[Event "Titled Tuesday Blitz September 28 2021"]
[White "Korobov, Anton"]
[Black "Sychev, Klementy"]
[WhiteFideId "14105730"]
[BlackFideId "4114060"]
[WhiteElo "2703"]
[BlackElo "2615"]
[Result "1-0"]
[Round "06"]
[TimeControl "180+1"]
[Date "2021.09.28"]
[WhiteClock "0:00:23"]
[BlackClock "0:00:02"]

1. d4 {[%clk 0:03:00]}  Nf6 {[%clk 0:02:58]} 2. c4 {[%clk 0:03:00]}  e6 {[%clk 0:02:59]} 3. Nf3 {[%clk 0:02:58]}  d5 {[%clk 0:02:55]} 4. Nc3 {[%clk 0:02:58]}  Ne4 {[%clk 0:02:55]} 5. e3 {[%clk 0:02:46]}  c6 {[%clk 0:02:53]} 6. Bd3 {[%clk 0:02:40]}  f5 {[%clk 0:02:53]} 7. O-O {[%clk 0:02:39]}  Nd7 {[%clk 0:02:50]} 8. Ne2 {[%clk 0:02:38]}  Bd6 {[%clk 0:02:50]} 9. Rb1 {[%clk 0:02:33]}  Qe7 {[%clk 0:02:49]} 10. b3 {[%clk 0:02:26]}  O-O {[%clk 0:02:48]} 11. Bb2 {[%clk 0:02:26]}  Rf6 {[%clk 0:02:34]} 12. Ne5 {[%clk 0:02:17]}  Rh6 {[%clk 0:02:34]} 13. g3 {[%clk 0:02:12]}  Ndf6 {[%clk 0:02:26]} 14. f3 {[%clk 0:02:08]}  Ng5 {[%clk 0:02:00]} 15. Nf4 {[%clk 0:02:05]}  Bd7 {[%clk 0:01:50]} 16. Bc3 {[%clk 0:01:52]}  Nf7 {[%clk 0:01:33]} 17. Be2 {[%clk 0:01:40]}  g5 {[%clk 0:01:30]} 18. Nfd3 {[%clk 0:01:40]}  Qe8 {[%clk 0:01:21]} 19. b4 {[%clk 0:01:32]}  Nd8 {[%clk 0:01:01]} 20. Rf2 {[%clk 0:01:24]}  Rc8 {[%clk 0:00:46]} 21. a4 {[%clk 0:01:15]}  Bb8 {[%clk 0:00:40]} 22. Nc5 {[%clk 0:01:11]}  Rc7 {[%clk 0:00:37]} 23. b5 {[%clk 0:01:09]}  Bc8 {[%clk 0:00:31]} 24. Qb3 {[%clk 0:00:53]}  b6 {[%clk 0:00:25]} 25. Na6 {[%clk 0:00:46]}  Bxa6 {[%clk 0:00:24]} 26. bxa6 {[%clk 0:00:47]}  Rg7 {[%clk 0:00:17]} 27. c5 {[%clk 0:00:41]}  Bc7 {[%clk 0:00:17]} 28. cxb6 {[%clk 0:00:39]}  Bxb6 {[%clk 0:00:17]} 29. a5 {[%clk 0:00:39]}  Bc7 {[%clk 0:00:18]} 30. Qa4 {[%clk 0:00:36]}  f4 {[%clk 0:00:17]} 31. Rb7 {[%clk 0:00:36]}  fxe3 {[%clk 0:00:15]} 32. Rg2 {[%clk 0:00:36]}  Nxb7 {[%clk 0:00:06]} 33. axb7 {[%clk 0:00:36]}  Bxe5 {[%clk 0:00:06]} 34. dxe5 {[%clk 0:00:35]}  Rxb7 {[%clk 0:00:05]} 35. exf6 {[%clk 0:00:35]}  Rb1+ {[%clk 0:00:05]} 36. Bd1 {[%clk 0:00:36]}  Qb8 {[%clk 0:00:03]} 37. Rb2 {[%clk 0:00:22]}  Rxb2 {[%clk 0:00:03]} 38. Qxc6 {[%clk 0:00:23]}  Rb1 {[%clk 0:00:02]} 39. Qxe6+ {[%clk 0:00:22]}  Kh8 {[%clk 0:00:02]} 40. f7+ {[%clk 0:00:23]}  d4 {[%clk 0:00:02]} 41. Bxd4+ {[%clk 0:00:23]} 1-0


[Site "https://www.chess.com"]

[Event "Titled Tuesday Blitz September 28 2021"]
[White "Kovalev, Vladislav"]
[Black "Quparadze, Giga"]
[WhiteFideId "13504398"]
[BlackFideId "13602250"]
[WhiteElo "2822"]
[BlackElo "2943"]
[Result "0-1"]
[Round "06"]
[TimeControl "180+1"]
[Date "2021.09.28"]
[WhiteClock "0:00:12"]
[BlackClock "0:02:29"]

1. e4 {[%clk 0:03:00]}  c5 {[%clk 0:03:00]} 2. Nf3 {[%clk 0:03:00]}  e6 {[%clk 0:03:00]} 3. d4 {[%clk 0:03:00]}  cxd4 {[%clk 0:03:00]} 4. Nxd4 {[%clk 0:03:01]}  a6 {[%clk 0:03:00]} 5. Nc3 {[%clk 0:03:01]}  b5 {[%clk 0:03:00]} 6. Bd3 {[%clk 0:03:01]}  Bb7 {[%clk 0:03:00]} 7. O-O {[%clk 0:03:01]}  Nc6 {[%clk 0:03:01]} 8. Nxc6 {[%clk 0:03:01]}  Bxc6 {[%clk 0:03:02]} 9. Re1 {[%clk 0:03:01]}  Bc5 {[%clk 0:03:02]} 10. Qg4 {[%clk 0:02:57]}  Nf6 {[%clk 0:02:59]} 11. Qg3 {[%clk 0:02:32]}  d6 {[%clk 0:02:58]} 12. a4 {[%clk 0:02:17]}  b4 {[%clk 0:02:58]} 13. Nd5 {[%clk 0:02:16]}  O-O {[%clk 0:02:56]} 14. Nxf6+ {[%clk 0:01:56]}  Qxf6 {[%clk 0:02:56]} 15. e5 {[%clk 0:01:57]}  dxe5 {[%clk 0:02:51]} 16. Be3 {[%clk 0:01:12]}  Bxe3 {[%clk 0:02:49]} 17. Qxe3 {[%clk 0:01:07]}  e4 {[%clk 0:02:49]} 18. Bxe4 {[%clk 0:01:08]}  Rac8 {[%clk 0:02:41]} 19. Bd3 {[%clk 0:00:37]}  a5 {[%clk 0:02:40]} 20. Qe5 {[%clk 0:00:34]}  Bd5 {[%clk 0:02:36]} 21. Qxf6 {[%clk 0:00:33]}  gxf6 {[%clk 0:02:37]} 22. f3 {[%clk 0:00:32]}  f5 {[%clk 0:02:35]} 23. Kf2 {[%clk 0:00:33]}  Kg7 {[%clk 0:02:34]} 24. Ke3 {[%clk 0:00:28]}  Kf6 {[%clk 0:02:34]} 25. Kd2 {[%clk 0:00:29]}  Rfd8 {[%clk 0:02:33]} 26. Re3 {[%clk 0:00:21]}  Bc4 {[%clk 0:02:30]} 27. Rae1 {[%clk 0:00:20]}  b3 {[%clk 0:02:29]} 28. cxb3 {[%clk 0:00:12]}  Bxb3 {[%clk 0:02:30]} 29. Rc1 {[%clk 0:00:11]}  Rxc1 {[%clk 0:02:28]} 30. Kxc1 {[%clk 0:00:12]}  f4 {[%clk 0:02:29]} 0-1


[Site "https://www.chess.com"]

[Event "Titled Tuesday Blitz September 28 2021"]
[White "Krivonosov, Oleg"]
[Black "Ozates, Tuna"]
[WhiteFideId "11600349"]
[BlackFideId "6354521"]
[WhiteElo "2469"]
[BlackElo "1872"]
[Result "1-0"]
[Round "06"]
[TimeControl "180+1"]
[Date "2021.09.28"]
[WhiteClock "0:00:39"]
[BlackClock "0:01:37"]

1. Nf3 {[%clk 0:03:00]}  b6 {[%clk 0:02:55]} 2. g3 {[%clk 0:03:00]}  Bb7 {[%clk 0:02:56]} 3. Bg2 {[%clk 0:03:00]}  c5 {[%clk 0:02:57]} 4. c4 {[%clk 0:02:58]}  Nf6 {[%clk 0:02:58]} 5. O-O {[%clk 0:02:58]}  e6 {[%clk 0:02:58]} 6. Nc3 {[%clk 0:02:57]}  Be7 {[%clk 0:02:58]} 7. d4 {[%clk 0:02:56]}  cxd4 {[%clk 0:02:59]} 8. Qxd4 {[%clk 0:02:56]}  Nc6 {[%clk 0:02:59]} 9. Qf4 {[%clk 0:02:55]}  Qb8 {[%clk 0:03:00]} 10. Rd1 {[%clk 0:02:54]}  O-O {[%clk 0:03:00]} 11. Qxb8 {[%clk 0:02:53]}  Raxb8 {[%clk 0:02:57]} 12. Bf4 {[%clk 0:02:53]}  Ra8 {[%clk 0:02:51]} 13. Rac1 {[%clk 0:02:43]}  a6 {[%clk 0:02:49]} 14. Na4 {[%clk 0:02:28]}  b5 {[%clk 0:02:41]} 15. Nb6 {[%clk 0:02:27]}  Rad8 {[%clk 0:02:37]} 16. Bc7 {[%clk 0:02:25]}  Rde8 {[%clk 0:02:37]} 17. Nxd7 {[%clk 0:02:21]}  Nxd7 {[%clk 0:02:37]} 18. Rxd7 {[%clk 0:02:19]}  Bf6 {[%clk 0:02:32]} 19. b3 {[%clk 0:02:09]}  Bc8 {[%clk 0:02:31]} 20. Rd2 {[%clk 0:02:02]}  b4 {[%clk 0:02:26]} 21. Bd6 {[%clk 0:01:56]}  Be7 {[%clk 0:02:26]} 22. Rcd1 {[%clk 0:01:46]}  Bxd6 {[%clk 0:02:20]} 23. Rxd6 {[%clk 0:01:45]}  Rd8 {[%clk 0:02:21]} 24. Rxd8 {[%clk 0:01:38]}  Rxd8 {[%clk 0:02:20]} 25. Rxd8+ {[%clk 0:01:38]}  Nxd8 {[%clk 0:02:21]} 26. Ne5 {[%clk 0:01:37]}  f6 {[%clk 0:02:19]} 27. Nc6 {[%clk 0:01:29]}  Nxc6 {[%clk 0:02:19]} 28. Bxc6 {[%clk 0:01:29]}  Kf8 {[%clk 0:02:20]} 29. f4 {[%clk 0:01:28]}  Ke7 {[%clk 0:02:20]} 30. Kf2 {[%clk 0:01:28]}  Kd6 {[%clk 0:02:20]} 31. Be4 {[%clk 0:01:28]}  g6 {[%clk 0:02:20]} 32. g4 {[%clk 0:01:24]}  Kc5 {[%clk 0:02:19]} 33. e3 {[%clk 0:01:22]}  e5 {[%clk 0:02:12]} 34. fxe5 {[%clk 0:01:13]}  fxe5 {[%clk 0:02:13]} 35. g5 {[%clk 0:01:12]}  Bg4 {[%clk 0:02:10]} 36. Ke1 {[%clk 0:01:10]}  a5 {[%clk 0:02:09]} 37. Kd2 {[%clk 0:01:09]}  a4 {[%clk 0:02:09]} 38. bxa4 {[%clk 0:01:03]}  Bc8 {[%clk 0:02:02]} 39. Bd5 {[%clk 0:00:56]}  Bf5 {[%clk 0:01:47]} 40. Kc1 {[%clk 0:00:54]}  Kb6 {[%clk 0:01:45]} 41. Kb2 {[%clk 0:00:52]}  Ka5 {[%clk 0:01:45]} 42. Kb3 {[%clk 0:00:52]}  Bd7 {[%clk 0:01:45]} 43. c5 {[%clk 0:00:48]}  Bxa4+ {[%clk 0:01:45]} 44. Kb2 {[%clk 0:00:48]}  Bd7 {[%clk 0:01:38]} 45. c6 {[%clk 0:00:45]}  Bc8 {[%clk 0:01:38]} 46. Bg8 {[%clk 0:00:42]}  Kb5 {[%clk 0:01:38]} 47. Bxh7 {[%clk 0:00:41]}  Kxc6 {[%clk 0:01:36]} 48. Bxg6 {[%clk 0:00:40]}  Kd5 {[%clk 0:01:37]} 49. h4 {[%clk 0:00:39]} 1-0


[Site "https://www.chess.com"]

[Event "Titled Tuesday Blitz September 28 2021"]
[White "Maly, Alexey"]
[Black "Taichman, Ori"]
[WhiteFideId "14103184"]
[BlackFideId "2804069"]
[WhiteElo "2250"]
[BlackElo "2227"]
[Result "1-0"]
[Round "06"]
[TimeControl "180+1"]
[Date "2021.09.28"]
[WhiteClock "0:01:29"]
[BlackClock "0:00:10"]

1. d4 {[%clk 0:03:00]}  Nf6 {[%clk 0:02:50]} 2. c4 {[%clk 0:02:59]}  g6 {[%clk 0:02:51]} 3. Nc3 {[%clk 0:02:58]}  Bg7 {[%clk 0:02:51]} 4. e4 {[%clk 0:02:59]}  O-O {[%clk 0:02:52]} 5. Be2 {[%clk 0:02:59]}  d6 {[%clk 0:02:52]} 6. Nf3 {[%clk 0:03:00]}  e5 {[%clk 0:02:52]} 7. O-O {[%clk 0:03:00]}  Nc6 {[%clk 0:02:52]} 8. d5 {[%clk 0:03:00]}  Ne7 {[%clk 0:02:52]} 9. Ne1 {[%clk 0:03:01]}  Nd7 {[%clk 0:02:52]} 10. Be3 {[%clk 0:03:01]}  f5 {[%clk 0:02:53]} 11. f3 {[%clk 0:03:02]}  f4 {[%clk 0:02:54]} 12. Bf2 {[%clk 0:03:02]}  g5 {[%clk 0:02:54]} 13. a4 {[%clk 0:03:02]}  h5 {[%clk 0:02:24]} 14. a5 {[%clk 0:03:02]}  a6 {[%clk 0:02:21]} 15. Nd3 {[%clk 0:02:59]}  Ng6 {[%clk 0:02:21]} 16. c5 {[%clk 0:02:58]}  Rf7 {[%clk 0:02:10]} 17. cxd6 {[%clk 0:02:59]}  cxd6 {[%clk 0:02:10]} 18. Na4 {[%clk 0:02:59]}  Nf6 {[%clk 0:01:56]} 19. Nb6 {[%clk 0:02:59]}  Rb8 {[%clk 0:01:56]} 20. Rc1 {[%clk 0:02:59]}  g4 {[%clk 0:01:55]} 21. Qc2 {[%clk 0:02:51]}  g3 {[%clk 0:01:54]} 22. Nxc8 {[%clk 0:02:47]}  Ne8 {[%clk 0:00:57]} 23. Bb6 {[%clk 0:02:17]}  Qh4 {[%clk 0:00:32]} 24. h3 {[%clk 0:02:15]}  Rc7 {[%clk 0:00:20]} 25. Bxc7 {[%clk 0:01:58]}  Rxc8 {[%clk 0:00:19]} 26. Qb3 {[%clk 0:01:56]}  Nf6 {[%clk 0:00:20]} 27. Bxd6 {[%clk 0:01:49]}  Rxc1 {[%clk 0:00:19]} 28. Rxc1 {[%clk 0:01:50]}  Nh7 {[%clk 0:00:19]} 29. Rc8+ {[%clk 0:01:48]}  Ngf8 {[%clk 0:00:20]} 30. Bxf8 {[%clk 0:01:45]}  Ng5 {[%clk 0:00:20]} 31. Bxg7+ {[%clk 0:01:42]}  Kh7 {[%clk 0:00:19]} 32. d6 {[%clk 0:01:34]}  Nxh3+ {[%clk 0:00:13]} 33. gxh3 {[%clk 0:01:35]}  Qxh3 {[%clk 0:00:10]} 34. Qg8+ {[%clk 0:01:34]}  Kg6 {[%clk 0:00:11]} 35. Nxe5+ {[%clk 0:01:29]}  Kg5 {[%clk 0:00:10]} 36. Qd8# {[%clk 0:01:29]} 1-0


[Site "https://www.chess.com"]

[Event "Titled Tuesday Blitz September 28 2021"]
[White "Manafov, Vugar"]
[Black "Mortazavi, Ali"]
[WhiteFideId "13410814"]
[BlackFideId "401323"]
[WhiteElo "2274"]
[BlackElo "2339"]
[Result "1-0"]
[Round "06"]
[TimeControl "180+1"]
[Date "2021.09.28"]
[WhiteClock "0:01:36"]
[BlackClock "0:00:51"]

1. d4 {[%clk 0:03:00]}  Nf6 {[%clk 0:02:59]} 2. c4 {[%clk 0:03:00]}  g6 {[%clk 0:03:00]} 3. Nc3 {[%clk 0:02:59]}  Bg7 {[%clk 0:03:01]} 4. g3 {[%clk 0:02:59]}  O-O {[%clk 0:03:01]} 5. Bg2 {[%clk 0:02:59]}  d6 {[%clk 0:03:02]} 6. Nf3 {[%clk 0:02:58]}  Nbd7 {[%clk 0:03:03]} 7. O-O {[%clk 0:02:58]}  e5 {[%clk 0:03:04]} 8. e4 {[%clk 0:02:55]}  c6 {[%clk 0:03:04]} 9. b3 {[%clk 0:02:53]}  Re8 {[%clk 0:02:46]} 10. Bb2 {[%clk 0:02:50]}  a6 {[%clk 0:02:29]} 11. a4 {[%clk 0:02:44]}  a5 {[%clk 0:02:28]} 12. Qc2 {[%clk 0:02:37]}  exd4 {[%clk 0:02:27]} 13. Nxd4 {[%clk 0:02:37]}  Qb6 {[%clk 0:02:24]} 14. Rad1 {[%clk 0:02:36]}  Nc5 {[%clk 0:02:25]} 15. Rfe1 {[%clk 0:02:35]}  Bg4 {[%clk 0:02:13]} 16. Rd2 {[%clk 0:02:33]}  Rad8 {[%clk 0:02:10]} 17. h3 {[%clk 0:02:31]}  Bc8 {[%clk 0:02:11]} 18. Red1 {[%clk 0:02:28]}  h5 {[%clk 0:02:00]} 19. Kh1 {[%clk 0:02:16]}  h4 {[%clk 0:01:47]} 20. g4 {[%clk 0:02:14]}  Nxg4 {[%clk 0:01:46]} 21. hxg4 {[%clk 0:02:14]}  Bxg4 {[%clk 0:01:46]} 22. f3 {[%clk 0:02:10]}  h3 {[%clk 0:01:44]} 23. fxg4 {[%clk 0:02:06]}  hxg2+ {[%clk 0:01:44]} 24. Kxg2 {[%clk 0:02:05]}  Re5 {[%clk 0:01:16]} 25. Nf3 {[%clk 0:01:56]}  Re6 {[%clk 0:01:15]} 26. e5 {[%clk 0:01:44]}  Nxb3 {[%clk 0:01:09]} 27. Rxd6 {[%clk 0:01:44]}  Rde8 {[%clk 0:01:05]} 28. Rxe6 {[%clk 0:01:43]}  Rxe6 {[%clk 0:01:04]} 29. Ne4 {[%clk 0:01:43]}  Qe3 {[%clk 0:00:53]} 30. Rd3 {[%clk 0:01:40]}  Qxe4 {[%clk 0:00:52]} 31. Rd8+ {[%clk 0:01:40]}  Kh7 {[%clk 0:00:51]} 32. Qxe4 {[%clk 0:01:36]} 1-0


[Site "https://www.chess.com"]